bitfinex/quotes_BTCUSD_20251007
["timestamp","ask_amount","ask_price","bid_price","bid_amount"]
[1759851521099,0.16843311,121630.0,121620.0,0.41270404]
[1759851521314,0.16643311,121630.0,121620.0,0.41270404]
[1759851521535,0.17043311,121630.0,121620.0,0.41270404]
[1759851521737,0.22282311,121630.0,121620.0,0.41199404]
[1759851521974,1.65805655,121630.0,121620.0,0.00255198]
[1759851522143,1.66605655,121630.0,121620.0,0.00355198]
[1759851522369,0.88268311,121630.0,121620.0,0.00355198]
[1759851522570,0.64144311,121630.0,121620.0,0.00355198]
[1759851522819,0.87868311,121630.0,121620.0,0.00255198]
[1759851523036,0.87468311,121630.0,121620.0,0.00255198]
[1759851523174,0.88868311,121630.0,121620.0,0.00255198]
[1759851523652,0.50444663,121620.0,121610.0,8e-05]
[1759851523887,1.52956354,121620.0,121610.0,8e-05]
[1759851524105,0.71708216,121620.0,121610.0,0.0005932]
[1759851524529,1.65857354,121620.0,121610.0,0.0005932]
[1759851524741,1.68057354,121620.0,121610.0,0.0005932]
[1759851524941,1.66857354,121620.0,121610.0,0.0005932]
[1759851525137,3.42159854,121620.0,121610.0,0.0005932]
[1759851525381,0.16446015,121610.0,121600.0,0.00834]
[1759851525547,0.16446015,121610.0,121580.0,0.0015231]
[1759851525548,0.50448721,121590.0,121580.0,0.0015231]
[1759851525760,1.79712065,121590.0,121580.0,0.0015231]
[1759851525945,0.95829927,121590.0,121580.0,0.0015231]
[1759851526155,1.65811065,121590.0,121580.0,0.0015231]
[1759851526362,0.95829927,121590.0,121580.0,0.0015231]
[1759851526546,0.95829927,121590.0,121580.0,0.00306314]
[1759851526903,1.96135317,121590.0,121580.0,0.00306314]
[1759851527075,1.01986179,121590.0,121580.0,0.00306314]
[1759851527348,1.96135317,121590.0,121580.0,0.00306314]
[1759851527488,0.16457145,121530.0,121510.0,0.17171459]
[1759851527864,0.16457145,121530.0,121510.0,0.33630969]
[1759851527865,0.03205,121530.0,121510.0,0.33630969]
[1759851528076,0.01582,121530.0,121510.0,0.33630969]
[1759851528283,0.19661859,121530.0,121520.0,0.003082]
[1759851528475,0.29357859,121530.0,121520.0,0.003082]
[1759851528610,0.12951285,121530.0,121520.0,0.003082]
[1759851528832,0.13851285,121530.0,121500.0,4.4329243]
[1759851529042,0.10267,121520.0,121500.0,4.43292457]
[1759851529250,1.22425459,121530.0,121500.0,4.26831579]
[1759851529251,0.12901,121510.0,121500.0,4.26831579]
[1759851529449,0.04792285,121530.0,121500.0,4.68618529]
[1759851529694,0.12003225,121530.0,121510.0,0.1645955]
[1759851530036,0.07399,121520.0,121510.0,0.1645955]
[1759851530241,0.09012,121520.0,121500.0,4.26831579]
[1759851530413,0.12901,121520.0,121510.0,0.1645955]
[1759851531246,0.12901,121520.0,121500.0,4.26831579]
[1759851531387,0.09012,121520.0,121500.0,4.43292434]
[1759851531595,0.10812,121520.0,121510.0,0.1645955]
[1759851531797,0.06016,121520.0,121510.0,0.1645955]
[1759851531988,0.14701,121520.0,121500.0,4.43292449]
[1759851532220,0.10212,121520.0,121510.0,0.1645955]
[1759851532378,0.016,121520.0,121510.0,0.4113855]
[1759851532578,0.016,121520.0,121510.0,0.4913823]
[1759851532862,0.004,121520.0,121510.0,0.58296756]
[1759851533066,0.004,121520.0,121510.0,0.58147756]
[1759851533278,0.004,121520.0,121510.0,0.25010756]
[1759851533524,0.004,121520.0,121510.0,0.58187756]
[1759851533735,0.00136225,121530.0,121510.0,0.66187436]
[1759851533942,0.00136225,121530.0,121520.0,0.24919402]
[1759851534146,0.00136225,121530.0,121520.0,0.25068402]
[1759851534360,0.00136225,121530.0,121520.0,0.25307402]
[1759851534564,0.00136225,121530.0,121520.0,0.27807402]
[1759851534773,0.00136225,121530.0,121520.0,0.35807082]
[1759851534975,0.00736225,121530.0,121520.0,0.35807082]
[1759851535407,0.00736225,121530.0,121520.0,0.33009082]
[1759851535408,0.01536225,121530.0,121520.0,0.33009082]
[1759851535622,0.01536225,121530.0,121520.0,0.66045082]
[1759851535822,0.02236225,121530.0,121520.0,0.58194402]
[1759851536025,0.02236225,121530.0,121520.0,0.58343402]
[1759851537159,0.02236225,121530.0,121520.0,0.60843402]
[1759851537577,0.02236225,121530.0,121520.0,0.27807402]
[1759851537773,0.02236225,121530.0,121520.0,0.25158402]
[1759851537980,0.02236225,121530.0,121520.0,0.63349336]
[1759851538193,0.00836225,121530.0,121520.0,0.63349336]
[1759851538443,0.00736225,121530.0,121520.0,0.64036336]
[1759851538647,0.00236225,121530.0,121520.0,0.64136336]
[1759851539070,0.01036225,121530.0,121520.0,0.64136336]
[1759851539590,0.01036225,121530.0,121520.0,0.66636336]
[1759851539823,1e-08,121530.0,121520.0,1.10636336]
[1759851540042,1e-08,121530.0,121520.0,1.10536336]
[1759851540458,0.0084342,121590.0,121580.0,0.16450074]
[1759851540658,0.0084342,121590.0,121580.0,1.07203287]
[1759851540869,0.01,121600.0,121590.0,0.16448721]
[1759851541075,0.01,121600.0,121590.0,0.26134927]
[1759851541284,0.01,121600.0,121590.0,0.27234927]
[1759851541496,0.01359392,121600.0,121590.0,0.51722927]
[1759851541706,0.01359392,121600.0,121590.0,0.35234607]
[1759851541932,0.01359392,121600.0,121590.0,0.68274607]
[1759851542152,0.01359392,121600.0,121590.0,0.59027607]
[1759851542405,0.3047276,121600.0,121590.0,0.4113168]
[1759851542665,0.2628176,121600.0,121590.0,0.0809968]
[1759851542890,0.3218776,121600.0,121590.0,0.2458]
[1759851543117,0.3218776,121600.0,121590.0,0.001]
[1759851543344,0.74499966,121600.0,121590.0,0.001]
[1759851543566,0.16348721,121590.0,121580.0,0.12716]
[1759851543788,0.38241927,121590.0,121580.0,0.013116]
[1759851543980,0.38241927,121590.0,121580.0,0.0004]
[1759851543981,0.71941927,121590.0,121580.0,0.0004]
[1759851544208,1.66091065,121590.0,121580.0,0.0004]
[1759851544431,2.42757865,121590.0,121580.0,0.0004]
[1759851544644,1.15369497,121590.0,121580.0,0.0004]
[1759851544854,0.74340768,121590.0,121580.0,0.0004]
[1759851545025,0.71871097,121590.0,121580.0,0.0004]
[1759851545260,0.71871097,121590.0,121580.0,0.0054]
[1759851545261,2.34898835,121590.0,121580.0,0.0054]
[1759851545509,1.11748097,121590.0,121580.0,0.0014]
[1759851545706,1.11318927,121590.0,121580.0,0.0014]
[1759851545910,2.05468065,121590.0,121580.0,0.0014]
[1759851546168,1.11318927,121590.0,121580.0,0.0014]
[1759851546406,0.63729721,121590.0,121580.0,0.0014]
[1759851546656,0.0086,121580.0,121570.0,0.04212]
[1759851546858,0.0076,121580.0,121570.0,0.34537323]
[1759851547061,0.0076,121580.0,121570.0,0.33850323]
[1759851547285,0.16910074,121580.0,121570.0,0.12499896]
[1759851547523,0.30491074,121580.0,121570.0,0.00015063]
[1759851547897,0.23862074,121580.0,121570.0,0.00515063]
[1759851548154,0.21084074,121580.0,121570.0,0.00515063]
[1759851548338,0.25449074,121580.0,121570.0,0.00515063]
[1759851548651,0.21084074,121580.0,121570.0,0.00515063]
[1759851548877,0.25449074,121580.0,121570.0,0.00515063]
[1759851549004,0.32991074,121580.0,121570.0,0.00515063]
[1759851549223,1.02240497,121580.0,121570.0,0.00515063]
[1759851549427,0.66991074,121580.0,121570.0,0.00515063]
[1759851549627,1.36240497,121580.0,121570.0,0.00515063]
[1759851550531,0.9979928,121580.0,121570.0,0.00515063]
[1759851550788,2.56049303,121580.0,121570.0,0.00515063]
[1759851550999,1.87229069,121580.0,121570.0,0.00515063]
[1759851551209,0.16455487,121540.0,121520.0,0.05252876]
[1759851551410,0.20908841,121530.0,121520.0,0.24569942]
[1759851551809,0.30037841,121530.0,121520.0,0.00085942]
[1759851552033,0.22495841,121530.0,121520.0,0.00085942]
[1759851552249,0.16470572,121540.0,121520.0,0.17643836]
[1759851552475,0.16456841,121530.0,121520.0,0.17643836]
[1759851552697,0.19234841,121530.0,121520.0,0.32561622]
[1759851552917,0.23425841,121530.0,121520.0,0.00085942]
[1759851553368,1.26675264,121530.0,121520.0,0.00085942]
[1759851553632,1.3498747,121530.0,121520.0,0.00085942]
[1759851553844,0.65738047,121530.0,121520.0,0.00085942]
[1759851554092,1.35819895,121530.0,121520.0,0.00085942]
[1759851554337,2.47060495,121530.0,121520.0,0.00085942]
[1759851554530,1.76611072,121530.0,121520.0,0.00085942]
[1759851554766,2.47460495,121530.0,121520.0,0.00085942]
[1759851554927,2.39518095,121530.0,121520.0,0.00085942]
[1759851555144,1.43668572,121530.0,121520.0,0.00085942]
[1759851555360,1.66751502,121530.0,121520.0,0.00085942]
[1759851555510,2.26676725,121530.0,121520.0,0.00085942]
[1759851555876,2.26668725,121530.0,121520.0,0.00085942]
[1759851556328,1.93652725,121530.0,121520.0,0.00085942]
[1759851556532,1.94452725,121530.0,121520.0,0.00085942]
[1759851556666,1.25203302,121530.0,121520.0,0.00085942]
[1759851556876,1.58227302,121530.0,121520.0,0.00085942]
[1759851557081,2.18120725,121530.0,121520.0,0.00085942]
[1759851557582,2.17420725,121530.0,121520.0,0.00085942]
[1759851557783,1.00197402,121530.0,121520.0,0.00085942]
[1759851557957,1.44978825,121530.0,121520.0,0.00085942]
[1759851558164,0.05678,121530.0,121520.0,0.16544138]
[1759851558305,0.029,121530.0,121520.0,0.01185942]
[1759851558516,0.26325841,121530.0,121520.0,0.00085942]
[1759851558719,0.21134841,121530.0,121520.0,0.00085942]
[1759851558923,0.18356841,121530.0,121520.0,0.00085942]
[1759851559350,0.18356841,121530.0,121520.0,0.01185942]
[1759851559559,0.019,121530.0,121520.0,0.25956344]
[1759851559760,0.019,121530.0,121520.0,0.32278226]
[1759851560598,0.18356841,121530.0,121520.0,0.09498148]
[1759851560805,0.94575264,121530.0,121520.0,0.00085942]
[1759851561213,1.28575264,121530.0,121520.0,0.00085942]
[1759851561655,1.3688747,121530.0,121520.0,0.00085942]
[1759851562062,1.6136347,121530.0,121520.0,0.00085942]
[1759851562285,0.92114047,121530.0,121520.0,0.00085942]
[1759851562504,1.6136347,121530.0,121520.0,0.00085942]
[1759851563670,0.92114047,121530.0,121520.0,0.00085942]
[1759851563908,1.6135547,121530.0,121520.0,0.00085942]
[1759851564905,0.67638047,121530.0,121520.0,0.00085942]
[1759851565354,0.83833841,121530.0,121520.0,0.00085942]
[1759851565764,0.59325841,121530.0,121520.0,0.00085942]
[1759851565961,1.53083264,121530.0,121520.0,0.00085942]
[1759851566323,0.83833841,121530.0,121520.0,0.00085942]
[1759851566554,0.019,121530.0,121520.0,0.00984942]
[1759851566754,0.019,121530.0,121520.0,0.26004818]
[1759851567157,0.25325841,121530.0,121520.0,0.00085942]
[1759851568045,0.94575264,121530.0,121520.0,0.00085942]
[1759851569252,0.18356841,121530.0,121520.0,0.00085942]
[1759851569399,0.45626841,121530.0,121520.0,0.00085942]
[1759851569602,0.25044841,121530.0,121520.0,0.00085942]
[1759851569806,0.21134841,121530.0,121520.0,0.00085942]
[1759851570410,0.18356841,121530.0,121520.0,0.00085942]
[1759851570604,0.18356841,121530.0,121520.0,0.00984942]
[1759851570818,0.019,121530.0,121520.0,0.42873024]
[1759851572117,0.019,121530.0,121520.0,0.34317024]
[1759851572323,0.18356841,121530.0,121520.0,0.34311344]
[1759851572531,0.18356841,121530.0,121520.0,0.42317148]
[1759851572783,0.18356841,121530.0,121520.0,0.24749942]
[1759851572784,0.19275841,121530.0,121520.0,0.24749942]
[1759851572948,0.23285841,121530.0,121520.0,0.00285942]
[1759851573158,0.23885841,121530.0,121520.0,0.00285942]
[1759851573365,0.16456841,121530.0,121520.0,0.00085942]
[1759851573548,0.17456841,121530.0,121520.0,0.00085942]
[1759851573744,0.17656841,121530.0,121520.0,0.00185942]
[1759851574213,0.66698047,121530.0,121520.0,0.00185942]
[1759851574401,1.3594747,121530.0,121520.0,0.00185942]
[1759851574945,1.66590083,121530.0,121520.0,0.00185942]
[1759851575538,1.66586083,121530.0,121520.0,0.00185942]
[1759851575741,1.66386083,121530.0,121520.0,0.00085942]
[1759851575954,1.65686083,121530.0,121520.0,0.00185942]
[1759851576159,1.67386083,121530.0,121520.0,0.00185942]
[1759851576362,1.67376083,121530.0,121520.0,0.00185942]
[1759851576499,1.67064083,121530.0,121520.0,0.00085942]
[1759851576910,1.67664083,121530.0,121520.0,0.00185942]
[1759851577704,0.9841466,121530.0,121520.0,0.00185942]
[1759851578016,1.67664083,121530.0,121520.0,0.00185942]
[1759851578944,0.7392666,121530.0,121520.0,0.00185942]
[1759851579359,1.67648083,121530.0,121520.0,0.00185942]
[1759851579971,0.9839866,121530.0,121520.0,0.00185942]
[1759851580178,1.67648083,121530.0,121520.0,0.00185942]
[1759851580849,0.50458196,121520.0,121510.0,1.0]
[1759851581071,0.62826402,121520.0,121510.0,1.0]
[1759851581332,1.34740825,121520.0,121510.0,1.0]
[1759851581909,1.41488825,121520.0,121510.0,1.0]
[1759851582125,1.41988825,121520.0,121510.0,1.0]
[1759851582332,1.43888825,121520.0,121510.0,1.0]
[1759851582474,0.99091402,121520.0,121510.0,1.0]
[1759851582674,1.68340825,121520.0,121510.0,1.0]
[1759851583465,0.74639402,121520.0,121510.0,1.0]
[1759851583668,2.37590248,121520.0,121510.0,1.0]
[1759851583887,1.68340825,121520.0,121510.0,1.0]
[1759851584256,2.37590248,121520.0,121510.0,1.0]
[1759851584664,0.99091402,121520.0,121510.0,1.0]
[1759851584814,2.37590248,121520.0,121510.0,0.62238869]
[1759851585026,4.84102548,121520.0,121510.0,0.3142194]
[1759851585226,3.46403702,121520.0,121510.0,0.15107277]
[1759851585431,4.85331977,121520.0,121510.0,0.15107277]
[1759851585652,0.5045955,121510.0,121500.0,4.26831579]
[1759851585861,2.31036656,121510.0,121500.0,4.26831579]
[1759851586068,1.70195379,121510.0,121500.0,4.26831579]
[1759851586497,2.03179379,121510.0,121500.0,4.26831579]
[1759851586914,2.05479379,121510.0,121500.0,4.26831579]
[1759851587115,2.05479379,121510.0,121500.0,3.87895131]
[1759851587320,1.36229956,121510.0,121500.0,3.65677371]
[1759851587535,3.00798802,121510.0,121500.0,3.24667533]
[1759851587747,3.00798802,121510.0,121500.0,3.07877123]
[1759851587949,3.00798802,121510.0,121500.0,2.91326686]
[1759851588157,3.00798802,121510.0,121500.0,2.67492124]
[1759851588158,2.59172802,121510.0,121500.0,2.67492124]
[1759851588373,2.23136688,121510.0,121500.0,2.39868619]
[1759851588579,1.99179379,121510.0,121500.0,2.39868619]
[1759851588960,2.14335379,121510.0,121500.0,2.39868619]
[1759851589188,1.81323379,121510.0,121500.0,2.39868619]
[1759851589392,0.69945956,121510.0,121500.0,2.39868619]
[1759851589585,1.91559079,121510.0,121500.0,2.39868619]
[1759851589799,1.90226779,121510.0,121500.0,2.39868619]
[1759851590002,2.23234779,121510.0,121500.0,2.39868619]
[1759851590338,1.45590179,121510.0,121500.0,2.39868619]
[1759851590543,0.76330756,121510.0,121500.0,2.39868619]
[1759851590746,1.85695279,121510.0,121500.0,2.39868619]
[1759851591145,1.16445856,121510.0,121500.0,2.39868619]
[1759851591375,1.85695279,121510.0,121500.0,2.39868619]
[1759851591584,1.84273979,121510.0,121500.0,2.39868619]
[1759851592138,1.15024556,121510.0,121500.0,2.39868619]
[1759851592343,1.84273979,121510.0,121500.0,2.39868619]
[1759851592577,1.15024556,121510.0,121500.0,2.39868619]
[1759851592776,1.00794756,121510.0,121500.0,2.39868619]
[1759851592984,0.66798756,121510.0,121500.0,2.64332619]
[1759851593156,1.36048179,121510.0,121500.0,2.64332619]
[1759851593640,0.76330756,121510.0,121500.0,2.39868619]
[1759851593933,1.45580179,121510.0,121500.0,2.64336619]
[1759851594174,0.76330756,121510.0,121500.0,2.64336619]
[1759851594405,1.45580179,121510.0,121500.0,2.64324619]
[1759851594797,1.45580179,121510.0,121500.0,2.39868619]
[1759851595008,1.73061079,121510.0,121500.0,2.39868619]
[1759851595254,1.63394079,121510.0,121500.0,2.39868619]
[1759851595669,0.94148656,121510.0,121500.0,2.39868619]
[1759851595873,1.45584179,121510.0,121500.0,2.39868619]
[1759851596042,0.76334756,121510.0,121500.0,2.39868619]
[1759851596291,1.45584179,121510.0,121500.0,2.39868619]
[1759851596717,0.76334756,121510.0,121500.0,2.39868619]
[1759851596918,1.45584179,121510.0,121500.0,2.39868619]
[1759851597132,0.76334756,121510.0,121500.0,2.39868619]
[1759851597350,0.2654055,121510.0,121500.0,2.39868619]
[1759851597564,0.04104,121510.0,121500.0,2.42526619]
[1759851597994,0.04104,121510.0,121500.0,2.7928573]
[1759851598206,0.04104,121510.0,121500.0,2.7955373]
[1759851598427,0.04104,121510.0,121500.0,2.8755341]
[1759851598428,0.03004,121510.0,121500.0,2.8755341]
[1759851598665,0.00204,121510.0,121500.0,2.88373217]
[1759851598895,0.56604,121510.0,121500.0,2.90873217]
[1759851599151,0.55004,121510.0,121500.0,2.90873217]
[1759851599399,0.56404,121510.0,121500.0,3.00873217]
[1759851599584,0.56604,121510.0,121500.0,3.00873217]
[1759851599827,0.55204,121510.0,121500.0,3.50985217]
[1759851600028,0.55204,121510.0,121500.0,2.92317217]
[1759851600243,0.55204,121510.0,121500.0,3.59553217]
[1759851600464,0.55204,121510.0,121500.0,2.79817217]
[1759851600656,0.55004,121510.0,121500.0,3.47053217]
[1759851600827,0.55004,121510.0,121500.0,3.4623341]
[1759851601050,0.55004,121510.0,121500.0,3.1200541]
[1759851601244,0.56504,121510.0,121500.0,2.8425541]
[1759851601447,0.7296355,121510.0,121500.0,2.83930299]
[1759851601658,0.7337455,121510.0,121500.0,2.64316619]
[1759851601881,0.55004,121510.0,121500.0,2.70972619]
[1759851602036,0.56404,121510.0,121500.0,2.87533524]
[1759851602246,0.56504,121510.0,121500.0,2.51226299]
[1759851602447,1.98222179,121510.0,121500.0,2.40168619]
[1759851602658,3.58634679,121510.0,121500.0,2.40168619]
[1759851602902,1.47825398,121510.0,121500.0,2.40168619]
[1759851603102,1.53894198,121510.0,121500.0,2.40168619]
[1759851603330,1.55794198,121510.0,121500.0,2.40268619]
[1759851603531,2.25043621,121510.0,121500.0,2.48268299]
[1759851603699,1.40690198,121510.0,121500.0,2.39968619]
[1759851604192,2.10039621,121510.0,121500.0,2.40068619]
[1759851604396,2.10039621,121510.0,121500.0,2.39968619]
[1759851604637,2.64457221,121510.0,121500.0,2.39868619]
[1759851604843,2.67357221,121510.0,121500.0,1.98849189]
[1759851605041,2.67957221,121510.0,121500.0,1.98949189]
[1759851605253,2.65057221,121510.0,121500.0,1.51704917]
[1759851605409,2.77557221,121510.0,121500.0,1.32159]
[1759851605611,2.80057221,121510.0,121500.0,1.1706643]
[1759851605882,2.80057221,121510.0,121500.0,1.01008043]
[1759851606087,2.76957221,121510.0,121500.0,0.85554731]
[1759851606295,3.49506644,121510.0,121500.0,0.85654731]
[1759851606496,3.49506644,121510.0,121500.0,0.8318555]
[1759851606736,2.55769221,121510.0,121500.0,0.32458874]
[1759851606941,3.23033221,121510.0,121500.0,0.09564246]
[1759851607153,0.16469038,121440.0,121430.0,0.6326704]
[1759851607328,0.16467682,121450.0,121430.0,0.7126672]
[1759851607542,0.16469038,121440.0,121430.0,0.56730291]
[1759851607973,0.23279038,121440.0,121430.0,0.56730291]
[1759851608173,0.31566038,121440.0,121430.0,0.81194291]
[1759851608309,0.03105062,121440.0,121430.0,0.81194291]
[1759851608515,0.164841,121440.0,121430.0,0.56730291]
[1759851608716,0.341811,121440.0,121430.0,0.81390291]
[1759851609091,0.344811,121440.0,121430.0,0.81486291]
[1759851609337,0.42793306,121440.0,121430.0,0.57030291]
[1759851609556,1.46042729,121440.0,121430.0,0.57030291]
[1759851610251,3.12320652,121440.0,121430.0,0.57030291]
[1759851610478,2.28809943,121440.0,121430.0,0.57030291]
[1759851610944,2.95129354,121440.0,121430.0,0.18273336]
[1759851611182,2.5431748,121440.0,121430.0,0.11775222]
[1759851611408,0.62970394,121430.0,121420.0,0.0117937]
[1759851611624,0.50473107,121410.0,121400.0,0.0023]
[1759851611849,6.6167099,121410.0,121400.0,0.0023]
[1759851612076,0.62974464,121400.0,121390.0,0.00499]
[1759851612306,7.54373714,121400.0,121390.0,1e-08]
[1759851612500,0.62975821,121390.0,121380.0,0.0102]
[1759851612709,6.38728099,121390.0,121380.0,0.0102]
[1759851612911,5.88276899,121390.0,121380.0,0.0102]
[1759851613120,1.60235827,121390.0,121380.0,0.01687598]
[1759851613353,1.60235827,121390.0,121340.0,0.0025261]
[1759851613354,0.50424547,121350.0,121340.0,0.0025261]
[1759851613569,0.34050371,121350.0,121340.0,0.0025261]
[1759851613787,0.39051371,121350.0,121340.0,0.0025261]
[1759851614004,0.49147371,121350.0,121340.0,0.0025261]
[1759851614209,0.57459577,121350.0,121340.0,0.0025261]
[1759851614661,0.63492654,121350.0,121340.0,0.0025261]
[1759851614891,1.99048878,121350.0,121340.0,0.0025261]
[1759851615094,2.13692606,121350.0,121340.0,0.0025261]
[1759851615302,2.98952378,121350.0,121300.0,0.17612363]
[1759851615519,2.98952378,121350.0,121300.0,0.16487525]
[1759851615520,0.22426573,121310.0,121300.0,0.16487525]
[1759851615720,0.12426573,121300.0,121280.0,0.16489644]
[1759851615926,0.01903,121290.0,121280.0,0.16489644]
[1759851616143,0.03702,121290.0,121280.0,0.16489644]
[1759851616360,0.02426573,121280.0,121270.0,0.17316731]
[1759851616583,0.22426573,121290.0,121280.0,0.16490765]
[1759851616790,0.00050309,121290.0,121280.0,0.25043971]
[1759851617239,0.10151882,121290.0,121280.0,0.24802971]
[1759851617452,0.20382095,121290.0,121280.0,0.32808206]
[1759851617649,0.35797095,121290.0,121280.0,0.24802971]
[1759851617862,0.33088882,121290.0,121280.0,0.08312206]
[1759851618062,0.37673882,121290.0,121280.0,0.32848206]
[1759851618302,0.37673882,121290.0,121220.0,0.00073427]
[1759851618303,0.03251111,121280.0,121220.0,0.00073427]
[1759851618517,0.22256458,121260.0,121240.0,0.08312206]
[1759851618714,0.38751303,121250.0,121240.0,0.09471227]
[1759851618916,1.48435275,121250.0,121240.0,0.09320227]
[1759851619204,0.37353458,121250.0,121240.0,0.09320227]
[1759851619408,0.87848303,121250.0,121240.0,0.09320227]
[1759851619849,2.12678308,121250.0,121240.0,0.09033593]
[1759851620063,1.34586181,121250.0,121240.0,0.09033593]
[1759851620267,0.87898581,121250.0,121240.0,0.09033593]
[1759851620476,0.71403736,121250.0,121240.0,0.18545387]
[1759851620682,0.71403736,121250.0,121240.0,0.00721387]
[1759851620891,0.79715942,121250.0,121240.0,0.00721387]
[1759851621100,0.41130942,121250.0,121240.0,0.02165387]
[1759851621309,0.40003736,121250.0,121240.0,0.15757387]
[1759851621521,0.40003736,121250.0,121240.0,0.25569387]
[1759851621522,0.32992163,121250.0,121240.0,0.25569387]
[1759851621737,0.39826949,121250.0,121240.0,0.25573387]
[1759851621941,0.14989057,121250.0,121240.0,0.42069592]
[1759851622171,0.14989057,121250.0,121240.0,0.42236592]
[1759851622375,0.14989057,121250.0,121240.0,0.42399592]
[1759851622590,0.12562484,121250.0,121240.0,0.17519592]
[1759851622786,0.12562484,121250.0,121240.0,0.42431592]
[1759851623193,0.11928169,121250.0,121240.0,0.42431592]
[1759851623394,0.11328169,121250.0,121240.0,0.76431592]
[1759851623608,0.09412206,121250.0,121240.0,0.51619592]
[1759851624026,0.10612206,121250.0,121240.0,0.17619592]
[1759851624228,0.09312206,121250.0,121240.0,0.00872387]
[1759851624438,0.09412206,121250.0,121240.0,0.17468592]
[1759851624642,0.011,121250.0,121240.0,0.93683798]
[1759851624847,0.023,121250.0,121240.0,0.93883798]
[1759851625050,0.023,121250.0,121240.0,1.27883798]
[1759851625660,0.011,121250.0,121240.0,0.60131798]
[1759851625892,0.01,121250.0,121240.0,1.27783798]
[1759851626311,0.01,121250.0,121240.0,0.60031798]
[1759851626586,0.01,121250.0,121240.0,1.27783798]
[1759851626789,0.01,121250.0,121240.0,0.61973798]
[1759851626937,0.022,121250.0,121240.0,1.28087798]
[1759851627134,0.022,121250.0,121240.0,0.60331798]
[1759851627337,0.04726573,121250.0,121240.0,0.30833798]
[1759851627543,0.023,121250.0,121240.0,0.64349798]
[1759851627766,0.023,121250.0,121240.0,0.22521592]
[1759851627972,0.023,121250.0,121240.0,0.56045592]
[1759851628169,0.01088192,121250.0,121240.0,0.89785798]
[1759851628345,0.00988192,121250.0,121240.0,0.81269592]
[1759851628704,0.02388192,121250.0,121240.0,0.90037592]
[1759851628863,6e-05,121290.0,121280.0,0.16490765]
[1759851629064,6e-05,121290.0,121280.0,0.62962033]
[1759851629377,0.18110704,121330.0,121320.0,0.16485328]
[1759851629597,4e-05,121350.0,121330.0,0.16483969]
[1759851629598,0.18110704,121340.0,121330.0,0.16483969]
[1759851629817,4e-05,121350.0,121340.0,0.1648261]
[1759851629980,4e-05,121350.0,121340.0,0.4662661]
[1759851630390,4e-05,121350.0,121340.0,0.8089861]
[1759851630618,4e-05,121350.0,121340.0,0.89481672]
[1759851631092,0.00304,121350.0,121340.0,0.22265672]
[1759851631296,0.00304,121350.0,121340.0,0.21665672]
[1759851631502,0.00704,121350.0,121340.0,0.22265672]
[1759851631706,0.00704,121350.0,121340.0,0.68415062]
[1759851631907,0.00604,121350.0,121340.0,0.84697672]
[1759851632139,0.17714704,121360.0,121350.0,0.16481252]
[1759851632344,0.27714704,121380.0,121370.0,0.16478536]
[1759851632548,0.27714704,121380.0,121370.0,0.55162536]
[1759851633135,0.27714704,121380.0,121370.0,0.16478536]
[1759851633353,0.27714704,121380.0,121370.0,0.55150536]
[1759851633552,0.1,121380.0,121370.0,0.55150536]
[1759851633765,0.27714704,121380.0,121370.0,0.55150536]
[1759851633896,0.1,121380.0,121370.0,0.55150536]
[1759851634285,0.1,121380.0,121360.0,0.16478573]
[1759851634498,0.27714704,121380.0,121370.0,0.25046536]
[1759851634708,0.28014704,121380.0,121370.0,0.50362536]
[1759851634919,0.28814704,121380.0,121370.0,0.50414009]
[1759851635133,0.28514704,121380.0,121370.0,0.33535473]
[1759851635346,0.29514704,121380.0,121370.0,0.50014009]
[1759851635549,0.30314704,121380.0,121370.0,0.50006009]
[1759851635778,0.28914704,121380.0,121370.0,0.50006009]
[1759851636391,0.28914704,121380.0,121370.0,0.55174009]
[1759851636590,0.112,121380.0,121370.0,0.55174009]
[1759851636807,0.28914704,121380.0,121370.0,0.63486215]
[1759851637039,0.28714704,121380.0,121370.0,0.63686215]
[1759851637182,0.29214704,121380.0,121370.0,0.63686215]
[1759851637615,0.118,121380.0,121370.0,0.30310215]
[1759851637815,0.118,121380.0,121370.0,0.00351473]
[1759851637991,0.29514704,121380.0,121370.0,0.33815473]
[1759851638198,0.29514704,121380.0,121370.0,0.50294009]
[1759851638414,0.95656089,121380.0,121370.0,0.00351473]
[1759851638613,0.95656089,121380.0,121370.0,0.25247473]
[1759851638812,0.3782691,121380.0,121370.0,0.25247473]
[1759851639072,0.29514704,121380.0,121370.0,0.25247473]
[1759851639416,0.29514704,121380.0,121370.0,0.41726009]
[1759851639648,0.29514704,121380.0,121370.0,0.16830009]
[1759851639845,0.29514704,121380.0,121370.0,0.41718009]
[1759851640475,0.29514704,121380.0,121370.0,0.46834009]
[1759851640691,0.118,121380.0,121370.0,0.55146215]
[1759851641347,0.07746821,121380.0,121370.0,0.50778899]
[1759851641482,0.07746821,121380.0,121370.0,0.31022899]
[1759851641686,0.07746821,121380.0,121370.0,0.62999672]
[1759851642176,0.07746821,121380.0,121370.0,0.62234988]
[1759851642390,0.07746821,121380.0,121370.0,0.62253358]
[1759851642602,0.07335606,121380.0,121370.0,0.62253358]
[1759851642813,0.07335606,121380.0,121370.0,0.28813358]
[1759851643036,0.07335606,121380.0,121370.0,0.0001837]
[1759851643250,2.4889815,121380.0,121370.0,0.0001837]
[1759851643465,1.90725989,121380.0,121370.0,0.0001837]
[1759851643688,2.64313523,121380.0,121370.0,0.0001837]
[1759851643901,1.92222962,121380.0,121370.0,0.0001837]
[1759851644119,2.64013523,121380.0,121370.0,0.0001837]
[1759851644337,0.17714704,121320.0,121310.0,0.23847546]
[1759851644551,0.17614704,121330.0,121320.0,0.16485312]
[1759851644766,0.02258418,121330.0,121320.0,0.29913534]
[1759851645004,0.01958418,121330.0,121320.0,0.29913534]
[1759851645220,0.00762868,121330.0,121320.0,0.29913534]
[1759851646728,0.00015093,121330.0,121320.0,0.65732715]
[1759851646934,0.00215093,121330.0,121320.0,0.66713534]
[1759851647169,0.07284432,121370.0,121360.0,0.16479894]
[1759851647384,0.00762804,121370.0,121360.0,0.634361]
[1759851647591,0.00762804,121370.0,121360.0,0.299081]
[1759851648217,0.00015121,121370.0,121360.0,0.634321]
[1759851648674,0.01215121,121370.0,121360.0,0.499521]
[1759851648905,0.01215121,121370.0,121360.0,0.335561]
[1759851649116,0.01215121,121370.0,121360.0,0.585121]
[1759851649323,0.18829825,121370.0,121360.0,0.499441]
[1759851649755,0.18329825,121370.0,121360.0,0.499441]
[1759851649967,0.18329825,121370.0,121360.0,0.08512206]
[1759851650181,0.18214704,121370.0,121360.0,0.41619894]
[1759851650394,0.18214704,121370.0,121360.0,0.16731372]
[1759851650609,0.18614704,121370.0,121360.0,0.55447372]
[1759851651063,0.18614704,121370.0,121360.0,0.00351478]
[1759851651280,0.01,121370.0,121360.0,0.55183578]
[1759851651510,0.01,121370.0,121360.0,0.89447578]
[1759851651731,0.01,121370.0,121360.0,0.64259578]